bitfinex-derivatives/quotes_BTCF0:USTF0_20260111
["timestamp","ask_amount","ask_price","bid_price","bid_amount"]
[1768091067787,0.03646,90642.0,90626.0,0.02065951]
[1768091068086,0.03646,90642.0,90627.0,0.011048]
[1768091069489,0.03646,90642.0,90629.0,0.011048]
[1768091070487,0.01228509,90645.0,90629.0,0.011048]
[1768091071686,0.01228509,90645.0,90632.0,0.011047]
[1768091071890,0.01228509,90645.0,90626.0,0.00961151]
[1768091072185,0.00551605,90645.0,90626.0,0.0654324]
[1768091072374,0.00551605,90645.0,90636.0,0.011047]
[1768091073087,0.02864,90644.0,90636.0,0.011047]
[1768091073290,0.02864,90644.0,90633.0,0.011047]
[1768091074184,0.02864,90644.0,90634.0,0.011047]
[1768091086296,0.02864,90644.0,90635.0,0.011047]
[1768091087895,0.02864,90644.0,90631.0,0.011048]
[1768091088098,0.09388,90650.0,90645.0,0.011046]
[1768091088295,0.02523226,90650.0,90640.0,0.1268361]
[1768091088490,0.02523226,90650.0,90644.0,0.011046]
[1768091089598,0.02523226,90650.0,90646.0,0.011046]
[1768091089800,0.02523226,90650.0,90644.0,0.011046]
[1768091090802,0.00548933,90656.0,90644.0,0.011046]
[1768091091796,0.00548933,90656.0,90640.0,0.1268361]
[1768091091997,0.00548933,90656.0,90646.0,0.011046]
[1768091092399,0.02941,90655.0,90646.0,0.011046]
[1768091094617,0.01023871,90674.0,90657.0,0.011044]
[1768091094918,0.03742961,90673.0,90657.0,0.011044]
[1768091095106,0.0271909,90672.0,90657.0,0.011044]
[1768091095413,0.01023871,90673.0,90657.0,0.011044]
[1768091097721,0.01006254,90672.0,90657.0,0.011044]
[1768091098125,0.02445,90671.0,90657.0,0.011044]
[1768091100930,0.03399112,90671.0,90657.0,0.011044]
[1768091102529,0.0094628,90667.0,90648.0,0.01092814]
[1768091102723,0.0094628,90667.0,90646.0,0.011046]
[1768091102724,0.00988383,90666.0,90646.0,0.011046]
[1768091102923,0.00988383,90664.0,90646.0,0.011046]
[1768091103122,0.00933882,90663.0,90646.0,0.011046]
[1768091103329,0.00933882,90661.0,90646.0,0.011046]
[1768091103631,0.00921486,90660.0,90646.0,0.011046]
[1768091103835,0.00921486,90659.0,90646.0,0.011046]
[1768091104735,0.00921486,90659.0,90645.0,0.09388]
[1768091106033,0.00881515,90661.0,90647.0,0.011046]
[1768091106230,0.00881515,90661.0,90645.0,0.09388]
[1768091111340,0.011044,90664.0,90645.0,0.09388]
[1768091111529,0.01898347,90664.0,90645.0,0.09388]
[1768091111726,0.01898347,90664.0,90646.0,0.011046]
[1768091111932,0.00793947,90663.0,90646.0,0.011046]
[1768091115042,0.00714446,90662.0,90645.0,0.09388]
[1768091116745,0.00714446,90662.0,90645.0,0.104926]
[1768091117139,0.00714446,90662.0,90647.0,0.011046]
[1768091117641,0.00714446,90662.0,90645.0,0.09388]
[1768091117840,0.00714446,90662.0,90643.0,0.05454335]
[1768091117841,0.0068289,90661.0,90643.0,0.05454335]
[1768091118344,0.0178729,90661.0,90643.0,0.05454335]
[1768091120046,0.011044,90661.0,90643.0,0.05454335]
[1768091120246,0.011044,90661.0,90643.0,0.06453473]
[1768091121048,0.02059283,90663.0,90644.0,0.06453473]
[1768091121248,0.011044,90663.0,90646.0,0.05454335]
[1768091125646,0.09388,90665.0,90651.0,0.06453473]
[1768091130844,0.011044,90664.0,90647.0,0.05454335]
[1768091135656,0.09388,90665.0,90647.0,0.05454335]
[1768091137157,0.011044,90662.0,90647.0,0.05454335]
[1768091141966,0.09388,90665.0,90647.0,0.05454335]
[1768091142159,0.011044,90661.0,90646.0,0.00999138]
[1768091142962,0.011044,90661.0,90646.0,0.06308021]
[1768091143157,0.011044,90663.0,90646.0,0.06308021]
[1768091143364,0.011044,90663.0,90648.0,0.05308883]
[1768091144060,0.09388,90665.0,90644.0,0.05308883]
[1768091144061,0.011044,90661.0,90644.0,0.05308883]
[1768091144260,0.011044,90659.0,90641.0,0.0095672]
[1768091148562,0.011044,90659.0,90641.0,0.06265603]
[1768091151769,0.011045,90656.0,90641.0,0.06265603]
[1768091151972,0.09388,90655.0,90641.0,0.06265603]
[1768091157476,0.011045,90654.0,90641.0,0.06265603]
[1768091160578,0.02442,90653.0,90641.0,0.06265603]
[1768091160979,0.02442,90653.0,90643.0,0.0544179]
[1768091161978,0.02442,90653.0,90636.0,0.01132744]
[1768091162280,0.02442,90653.0,90636.0,0.011047]
[1768091162475,0.02442,90653.0,90636.0,0.02216642]
[1768091162781,0.02442,90653.0,90637.0,0.06407511]
[1768091163380,0.02442,90653.0,90638.0,0.06326409]
[1768091167890,0.02442,90653.0,90638.0,0.07431109]
[1768091168089,0.02442,90653.0,90639.0,0.05360688]
[1768091168291,0.02442,90653.0,90639.0,0.06301947]
[1768091168482,0.02442,90653.0,90641.0,0.05360688]
[1768091168682,0.02442,90653.0,90641.0,0.06301947]
[1768091175297,0.09388,90655.0,90647.0,0.06301947]
[1768091175494,0.03951222,90655.0,90649.0,0.05360688]
[1768091175694,0.09388,90654.0,90650.0,0.00941259]
[1768091175896,0.09388,90654.0,90639.0,0.011046]
[1768091177901,0.09388,90654.0,90641.0,0.00941259]
[1768091178098,0.09388,90654.0,90644.0,0.05360688]
[1768091178301,0.09388,90654.0,90646.0,0.05360688]
[1768091178602,0.09388,90654.0,90645.0,0.00941259]
[1768091178801,0.09388,90654.0,90641.0,0.05360688]
[1768091190709,0.09388,90654.0,90639.0,0.00941259]
[1768091193308,0.09388,90654.0,90638.0,0.05360688]
[1768091194114,0.09388,90654.0,90638.0,0.06465388]
[1768091195813,0.09388,90654.0,90638.0,0.011047]
[1768091198616,0.11343243,90654.0,90638.0,0.011047]
[1768091203421,0.12322226,90654.0,90638.0,0.011047]
[1768091203714,0.12322226,90654.0,90636.0,0.01111942]
[1768091203919,0.10366983,90654.0,90640.0,0.12681429]
[1768091204114,0.10366983,90654.0,90636.0,0.01131761]
[1768091204319,0.10366983,90654.0,90641.0,0.011046]
[1768091206316,0.12322226,90654.0,90640.0,0.12681429]
[1768091207220,0.12322226,90654.0,90641.0,0.011046]
[1768091210623,0.12322226,90654.0,90642.0,0.011046]
[1768091218129,0.12322226,90654.0,90639.0,0.011047]
[1768091218831,0.12322226,90654.0,90640.0,0.011046]
[1768091219233,0.12322226,90654.0,90642.0,0.011046]
[1768091220532,0.12322226,90654.0,90643.0,0.011046]
[1768091220936,0.00953391,90653.0,90643.0,0.011046]
[1768091221238,0.00953391,90653.0,90644.0,0.011046]
[1768091224243,0.00953391,90653.0,90645.0,0.011046]
[1768091226547,0.10366983,90654.0,90645.0,0.011046]
[1768091227347,0.10366983,90654.0,90638.0,0.011047]
[1768091227553,0.10366983,90654.0,90646.0,0.011046]
[1768091227554,0.09388,90654.0,90646.0,0.011046]
[1768091228154,0.09388,90654.0,90638.0,0.00523181]
[1768091228354,0.09388,90654.0,90636.0,0.02018779]
[1768091228549,0.09388,90654.0,90643.0,0.011046]
[1768091230556,0.10306927,90654.0,90643.0,0.011046]
[1768091230747,0.10306927,90654.0,90644.0,0.011046]
[1768091232860,0.10306927,90654.0,90645.0,0.011046]
[1768091233050,0.10306927,90654.0,90636.0,0.03123479]
[1768091233556,0.10306927,90654.0,90645.0,0.011046]
[1768091233855,0.10306927,90654.0,90636.0,0.03123479]
[1768091234852,0.10306927,90654.0,90644.0,0.011046]
[1768091235662,0.10306927,90654.0,90636.0,0.03123479]
[1768091236059,0.10306927,90654.0,90636.0,0.036462]
[1768091236258,0.10306927,90654.0,90643.0,0.011046]
[1768091236661,0.10306927,90654.0,90636.0,0.036462]
[1768091237162,0.10306927,90654.0,90643.0,0.011046]
[1768091238164,0.10306927,90654.0,90641.0,0.011046]
[1768091238365,0.10306927,90654.0,90645.0,0.011046]
[1768091238564,0.00918927,90653.0,90636.0,0.01081827]
[1768091238762,0.00918927,90653.0,90646.0,0.011046]
[1768091238963,0.00918927,90653.0,90633.0,0.00523278]
[1768091239663,0.00918927,90653.0,90645.0,0.011046]
[1768091239962,0.00918927,90653.0,90633.0,0.00523278]
[1768091240163,0.00918927,90653.0,90635.0,0.011047]
[1768091240365,0.00918927,90653.0,90633.0,0.00523278]
[1768091240567,0.00918927,90653.0,90647.0,0.011046]
[1768091240864,0.00959811,90652.0,90648.0,0.011045]
[1768091241058,0.00959811,90652.0,90638.0,0.011047]
[1768091241564,0.00959811,90652.0,90647.0,0.011046]
[1768091241967,0.00959811,90652.0,90638.0,0.011047]
[1768091242770,0.00959811,90652.0,90636.0,0.011047]
[1768091243070,0.00959811,90652.0,90633.0,0.00523278]
[1768091243071,0.00959811,90652.0,90643.0,0.011046]
[1768091243264,0.00959811,90652.0,90642.0,0.011046]
[1768091243471,0.03342,90651.0,90642.0,0.011046]
[1768091245871,0.03342,90651.0,90643.0,0.011046]
[1768091246566,0.04260927,90651.0,90643.0,0.011046]
[1768091249276,0.04260927,90651.0,90640.0,0.011046]
[1768091250274,0.04260927,90651.0,90641.0,0.011046]
[1768091255078,0.04260927,90651.0,90642.0,0.011046]
[1768091255272,0.04260927,90651.0,90643.0,0.011046]
[1768091257378,0.04260927,90651.0,90636.0,0.011047]
[1768091258178,0.04260927,90651.0,90644.0,0.011046]
[1768091258579,0.04260927,90651.0,90635.0,0.01126225]
[1768091258775,0.03342,90651.0,90645.0,0.011046]
[1768091260488,0.03342,90651.0,90646.0,0.011046]
[1768091260783,0.03342,90651.0,90646.0,0.00584887]
[1768091261984,0.0425639,90651.0,90646.0,0.00584887]
[1768091262178,9e-07,90651.0,90649.0,0.011045]
[1768091262383,0.10352723,90654.0,90652.0,0.011045]
[1768091264486,0.10352723,90654.0,90643.0,0.011046]
[1768091264879,0.11267113,90654.0,90651.0,0.011045]
[1768091265186,0.03079,90657.0,90651.0,0.011045]
[1768091266584,0.03079,90657.0,90653.0,0.011045]
[1768091269685,0.03079,90657.0,90655.0,0.011045]
[1768091270481,0.03079,90657.0,90652.0,0.011045]
[1768091270682,0.03079,90657.0,90644.0,0.00945134]
[1768091270683,0.03079,90657.0,90653.0,0.011045]
[1768091273396,0.03079,90657.0,90646.0,0.00966361]
[1768091273595,0.03079,90657.0,90651.0,0.011045]
[1768091274291,0.03079,90657.0,90653.0,0.011045]
[1768091281704,0.03079,90657.0,90650.0,0.011045]
[1768091282311,0.03079,90657.0,90644.0,0.00945134]
[1768091282507,0.03079,90657.0,90648.0,0.011046]
[1768091282707,0.03079,90657.0,90649.0,0.011045]
[1768091283208,0.03079,90657.0,90650.0,0.011045]
[1768091283509,7.6e-07,90661.0,90656.0,0.011045]
[1768091284300,0.09388,90668.0,90656.0,0.011045]
[1768091285110,0.09388,90668.0,90658.0,0.011044]
[1768091285303,0.09388,90668.0,90655.0,0.011045]
[1768091285504,0.00922368,90667.0,90655.0,0.011045]
[1768091285703,0.00922368,90666.0,90650.0,0.12678005]
[1768091286111,0.00922368,90664.0,90650.0,0.12678005]
[1768091286301,0.00922368,90664.0,90658.0,0.011044]
[1768091287019,0.00922368,90664.0,90650.0,0.13782505]
[1768091287315,0.00922368,90664.0,90650.0,0.12678005]
[1768091289416,0.00922368,90664.0,90642.0,0.01890595]
[1768091289617,0.00922368,90664.0,90650.0,0.12678005]
[1768091290116,0.00922368,90663.0,90650.0,0.12678005]
[1768091296716,0.02881,90665.0,90650.0,0.12678005]
[1768091297313,0.02881,90665.0,90650.0,0.13782505]
[1768091297620,0.02881,90665.0,90650.0,0.12678005]
[1768091297808,0.02881,90665.0,90651.0,0.011045]
[1768091298718,0.02881,90665.0,90650.0,0.12678005]
[1768091299317,0.011044,90664.0,90650.0,0.12678005]
[1768091299519,0.02881,90665.0,90650.0,0.12678005]
[1768091300219,0.09388,90664.0,90650.0,0.12678005]
[1768091303121,0.02881,90665.0,90650.0,0.12678005]
[1768091303417,0.09388,90664.0,90650.0,0.12678005]
[1768091329635,0.011044,90663.0,90650.0,0.12678005]
[1768091329823,0.09388,90664.0,90650.0,0.12678005]
[1768091330136,0.02493,90662.0,90650.0,0.12678005]
[1768091334546,0.02493,90662.0,90648.0,0.01886241]
[1768091342051,0.02493,90662.0,90649.0,0.00923419]
[1768091353163,0.02493,90662.0,90656.0,0.011045]
[1768091360672,0.02493,90662.0,90649.0,0.00923419]
[1768091360876,0.02493,90662.0,90650.0,0.00976017]
[1768091362167,0.02493,90662.0,90657.0,0.011044]
[1768091362369,0.02493,90662.0,90659.0,0.011044]
[1768091364272,0.09388,90663.0,90661.0,0.011044]
[1768091368360,0.12984,90666.0,90663.0,0.011044]
[1768091369274,0.12984,90666.0,90659.0,0.011044]
[1768091373477,0.12984,90666.0,90656.0,0.011045]
[1768091373881,0.12984,90666.0,90658.0,0.011044]
[1768091374270,0.12984,90666.0,90659.0,0.011044]
[1768091374680,0.12984,90666.0,90656.0,0.011044]
[1768091374874,0.12984,90666.0,90657.0,0.011044]
[1768091375779,0.12984,90666.0,90658.0,0.011044]
[1768091378383,0.12984,90666.0,90659.0,0.011044]
[1768091378566,0.12984,90666.0,90660.0,0.011044]
[1768091379976,0.12984,90666.0,90647.0,0.02050425]
[1768091380183,0.12984,90666.0,90648.0,0.00949684]
[1768091380381,0.12984,90666.0,90659.0,0.011044]
[1768091382883,0.13979683,90666.0,90659.0,0.011044]
[1768091385786,0.13979683,90666.0,90660.0,0.011044]
[1768091387989,0.00995683,90665.0,90660.0,0.011044]
[1768091389385,0.00995683,90665.0,90650.0,0.011045]
[1768091389593,0.00995683,90665.0,90659.0,0.011044]
[1768091390197,0.00995683,90665.0,90648.0,0.00949684]
[1768091391195,0.00995683,90665.0,90658.0,0.011044]
[1768091394090,0.12984,90666.0,90658.0,0.011044]
[1768091395796,0.13914324,90666.0,90650.0,0.011045]
[1768091396292,0.13914324,90666.0,90659.0,0.011044]
[1768091399097,0.13914324,90666.0,90657.0,0.011044]
[1768091399797,0.00930324,90665.0,90657.0,0.011044]
[1768091401899,0.00930324,90665.0,90654.0,0.011045]
[1768091402101,0.00930324,90665.0,90650.0,0.12675993]
[1768091402102,0.0094264,90663.0,90643.0,0.011046]
[1768091402298,0.12984,90666.0,90634.0,0.00992235]
[1768091402299,0.00930324,90656.0,90634.0,0.00992235]
[1768091402507,0.01872964,90651.0,90636.0,0.09388]
[1768091402802,0.00566846,90650.0,90636.0,0.09388]
[1768091403107,0.00566846,90650.0,90641.0,0.011046]
[1768091404105,0.00566846,90650.0,90636.0,0.09388]
[1768091404404,0.00566846,90650.0,90637.0,0.011047]
[1768091404604,0.00537198,90647.0,90637.0,0.011047]
[1768091405904,0.00537198,90647.0,90638.0,0.011047]
[1768091406906,0.00537198,90647.0,90635.0,0.01134108]
[1768091407102,0.00537198,90647.0,90630.0,0.22063993]
[1768091407503,0.00537198,90647.0,90638.0,0.011047]
[1768091408703,0.00537198,90647.0,90640.0,0.011046]
[1768091409602,0.00982215,90648.0,90640.0,0.011046]
[1768091409904,0.00982215,90648.0,90635.0,0.01097979]
[1768091410105,0.00982215,90648.0,90630.0,0.22063993]
[1768091410303,0.0150318,90648.0,90630.0,0.12675993]
[1768091410607,0.00520965,90647.0,90630.0,0.12675993]
[1768091411201,0.00520965,90647.0,90638.0,0.011047]
[1768091412310,0.00982215,90648.0,90639.0,0.011046]
[1768091412720,0.00521024,90650.0,90639.0,0.011046]
[1768091413906,0.00521024,90650.0,90630.0,0.15664092]
[1768091414105,0.00521024,90650.0,90631.0,0.00936602]
[1768091415419,0.00521024,90650.0,90631.0,0.01859118]
[1768091415619,0.00521024,90650.0,90638.0,0.011047]
[1768091417122,0.00521024,90650.0,90636.0,0.011047]
[1768091417321,0.00521024,90650.0,90638.0,0.011047]
[1768091417619,0.00521024,90650.0,90632.0,0.00936602]
[1768091417821,0.00521024,90650.0,90636.0,0.011047]
[1768091419021,0.01500338,90653.0,90637.0,0.011047]
[1768091419217,0.01500338,90653.0,90634.0,0.00936602]
[1768091420119,0.01500338,90653.0,90636.0,0.011047]
[1768091424425,0.03398,90652.0,90636.0,0.011047]
[1768091426028,0.045025,90652.0,90634.0,0.02041302]
[1768091426227,0.03398,90652.0,90637.0,0.011047]
[1768091427720,0.03398,90652.0,90634.0,0.00936602]
[1768091427721,0.045025,90652.0,90634.0,0.02041302]
[1768091427922,0.03398,90652.0,90634.0,0.00936602]
[1768091428125,0.03909924,90652.0,90634.0,0.00936602]
[1768091429328,0.03909924,90652.0,90637.0,0.011047]
[1768091430728,0.03909924,90652.0,90636.0,0.011047]
[1768091430931,0.03909924,90652.0,90633.0,0.00922516]
[1768091431925,0.03909924,90652.0,90636.0,0.011047]
[1768091432333,0.02666163,90651.0,90636.0,0.011047]
[1768091432535,0.03909924,90652.0,90636.0,0.011047]
[1768091432831,0.02666178,90651.0,90636.0,0.011047]
[1768091433034,0.03909924,90652.0,90636.0,0.011047]
[1768091433232,0.02666178,90651.0,90636.0,0.011047]
[1768091433530,0.03909924,90652.0,90636.0,0.011047]
[1768091433720,0.02666346,90651.0,90636.0,0.011047]
[1768091433924,0.03909924,90652.0,90636.0,0.011047]
[1768091434119,0.02666346,90651.0,90636.0,0.011047]
[1768091434328,0.03909924,90652.0,90636.0,0.011047]
[1768091434527,0.02666472,90651.0,90636.0,0.011047]
[1768091434729,0.03909924,90652.0,90637.0,0.011047]
[1768091434927,0.02666472,90651.0,90637.0,0.011047]
[1768091435126,0.03909924,90652.0,90637.0,0.011047]
[1768091435326,0.02666472,90651.0,90637.0,0.011047]
[1768091435527,0.03909924,90652.0,90637.0,0.011047]
[1768091435726,0.026616,90651.0,90637.0,0.011047]
[1768091436028,0.03909924,90652.0,90635.0,0.011047]
[1768091436232,0.026616,90651.0,90637.0,0.011047]
[1768091436432,0.03909924,90652.0,90637.0,0.011047]
[1768091436640,0.02661765,90651.0,90633.0,0.01868053]
[1768091436827,0.03909924,90652.0,90633.0,0.01868053]
[1768091437024,0.02661765,90651.0,90633.0,0.01868053]
[1768091437226,0.03909924,90652.0,90633.0,0.01868053]
[1768091437426,0.02661765,90651.0,90633.0,0.01868053]
[1768091437636,0.03909924,90652.0,90633.0,0.01868053]
[1768091437837,0.0266193,90651.0,90633.0,0.01868053]
[1768091438040,0.03909924,90652.0,90633.0,0.01868053]
[1768091438239,0.0266193,90651.0,90639.0,0.011047]
[1768091438428,0.03909924,90652.0,90639.0,0.011047]
[1768091438630,0.02662297,90651.0,90639.0,0.011047]
[1768091438926,0.03909924,90652.0,90639.0,0.011047]
[1768091439131,0.02662297,90651.0,90639.0,0.011047]
[1768091439438,0.03909924,90652.0,90639.0,0.011047]
[1768091439439,0.02662342,90650.0,90639.0,0.011047]
[1768091439641,0.03909924,90652.0,90639.0,0.011047]
[1768091439934,0.02662342,90651.0,90639.0,0.011047]
[1768091440140,0.02662342,90650.0,90637.0,0.011047]
[1768091440331,0.03398,90652.0,90637.0,0.011047]
[1768091440534,0.02662343,90651.0,90638.0,0.011047]
[1768091440731,0.02662343,90650.0,90638.0,0.011047]
[1768091441033,0.03398,90652.0,90638.0,0.011047]
[1768091444241,0.03398,90652.0,90640.0,0.011046]
[1768091444633,0.12786,90652.0,90640.0,0.011046]
[1768091445741,0.12786,90652.0,90638.0,0.011047]
[1768091445944,0.12786,90652.0,90639.0,0.011047]
[1768091450146,0.13297483,90652.0,90639.0,0.011047]
[1768091453546,0.13297483,90652.0,90633.0,0.01868053]
[1768091453757,0.13297483,90652.0,90637.0,0.011047]
[1768091454050,0.13297483,90652.0,90638.0,0.011047]
[1768091456749,0.005133,90651.0,90638.0,0.011047]
[1768091457152,0.005133,90651.0,90639.0,0.011046]
[1768091461754,0.005133,90651.0,90636.0,0.011047]
[1768091466662,0.005133,90651.0,90638.0,0.011047]
[1768091469561,0.12786,90652.0,90638.0,0.011047]
[1768091471463,0.09388,90652.0,90638.0,0.011047]
[1768091474170,0.09897623,90652.0,90633.0,0.01868053]
[1768091474357,0.09897623,90652.0,90634.0,0.011047]
[1768091474657,0.09897623,90652.0,90636.0,0.011047]
[1768091475167,0.00512802,90650.0,90633.0,0.00922516]
[1768091475371,0.00512802,90650.0,90636.0,0.011047]
[1768091478569,0.00512802,90650.0,90637.0,0.011047]
[1768091482170,0.02812,90651.0,90637.0,0.011047]
[1768091482373,0.02660568,90650.0,90637.0,0.011047]
[1768091482566,0.02812,90651.0,90637.0,0.011047]
[1768091482766,0.02660556,90650.0,90637.0,0.011047]
[1768091482969,0.02812,90651.0,90637.0,0.011047]
[1768091483172,0.02660556,90650.0,90637.0,0.011047]
[1768091483369,0.02812,90651.0,90637.0,0.011047]
[1768091483572,0.02660547,90650.0,90637.0,0.011047]
[1768091483765,0.02812,90651.0,90637.0,0.011047]
[1768091483968,0.02660547,90650.0,90638.0,0.011047]
[1768091484275,0.02812,90651.0,90638.0,0.011047]
[1768091484460,0.02660539,90650.0,90638.0,0.011047]
[1768091484664,0.02812,90651.0,90638.0,0.011047]
[1768091484865,0.02660539,90650.0,90638.0,0.011047]
[1768091485064,0.02812,90651.0,90638.0,0.011047]
[1768091485274,0.02660539,90650.0,90638.0,0.011047]
[1768091485473,0.02812,90651.0,90638.0,0.011047]
[1768091485674,0.02660534,90650.0,90638.0,0.011047]
[1768091485869,0.02660534,90650.0,90633.0,0.00922516]
[1768091485870,0.02812,90651.0,90635.0,0.011047]
[1768091486071,0.02660534,90650.0,90635.0,0.011047]
[1768091486372,0.02812,90651.0,90635.0,0.011047]
[1768091486576,0.0266053,90650.0,90635.0,0.011047]
[1768091486873,0.02812,90651.0,90635.0,0.011047]
[1768091487064,0.0266053,90650.0,90635.0,0.011047]
[1768091487261,0.02812,90651.0,90635.0,0.011047]
[1768091487478,0.02660527,90650.0,90635.0,0.011047]
[1768091487781,0.02812,90651.0,90635.0,0.011047]
[1768091487967,0.02660527,90650.0,90635.0,0.011047]
[1768091488262,0.02812,90651.0,90635.0,0.011047]
[1768091488466,0.02660528,90650.0,90635.0,0.011047]
[1768091488669,0.02812,90651.0,90636.0,0.011047]
[1768091488877,0.02660528,90650.0,90636.0,0.011047]
[1768091489175,0.02812,90651.0,90636.0,0.011047]
[1768091489377,0.02660529,90650.0,90636.0,0.011047]
[1768091489567,0.02812,90651.0,90636.0,0.011047]
[1768091489767,0.02660533,90650.0,90636.0,0.011047]
[1768091489972,0.02812,90651.0,90636.0,0.011047]
[1768091490172,0.02660533,90650.0,90636.0,0.011047]
[1768091490372,0.02812,90651.0,90636.0,0.011047]
[1768091490569,0.02660533,90650.0,90633.0,0.02027216]
[1768091490770,0.02812,90651.0,90633.0,0.00922516]
[1768091490973,0.02660533,90650.0,90633.0,0.00922516]
[1768091491176,0.02812,90651.0,90633.0,0.00922516]
[1768091492278,0.02812,90651.0,90634.0,0.011047]
[1768091493169,0.11005941,90652.0,90634.0,0.011047]
[1768091494085,0.00513441,90651.0,90634.0,0.011047]
[1768091494780,0.00513441,90651.0,90635.0,0.011047]
[1768091495680,0.03152,90650.0,90635.0,0.011047]
[1768091496584,0.03152,90650.0,90633.0,0.00922516]
[1768091498183,0.03152,90650.0,90637.0,0.011047]
[1768091501286,0.03152,90650.0,90638.0,0.011047]
[1768091507893,0.03152,90650.0,90635.0,0.011047]
[1768091508086,0.03664705,90650.0,90635.0,0.011047]
[1768091509305,0.03664705,90650.0,90636.0,0.011047]
[1768091511205,0.03664705,90650.0,90637.0,0.011047]
[1768091513609,0.03664705,90650.0,90634.0,0.011047]
[1768091513912,0.03664705,90650.0,90636.0,0.011047]
[1768091520107,0.00504566,90649.0,90636.0,0.011047]
[1768091520312,0.00504566,90649.0,90634.0,0.011047]
[1768091521010,0.01609066,90649.0,90631.0,0.011047]
[1768091521214,0.00504383,90643.0,90630.0,0.01128981]
[1768091521511,0.00504383,90643.0,90626.0,0.011048]
[1768091521706,0.00504383,90643.0,90626.0,0.02195802]
[1768091522307,0.00504383,90643.0,90627.0,0.011048]
[1768091522504,0.00504383,90643.0,90628.0,0.011048]
[1768091526606,0.02068759,90646.0,90628.0,0.011048]
[1768091526903,0.02646262,90645.0,90628.0,0.011048]
[1768091527104,0.011046,90645.0,90628.0,0.011048]
[1768091529114,0.0146663,90646.0,90628.0,0.011048]
[1768091530316,0.011046,90645.0,90628.0,0.011048]
[1768091531416,0.01606754,90645.0,90628.0,0.011048]
[1768091532413,0.00502154,90645.0,90628.0,0.011048]
[1768091533713,0.00502154,90645.0,90626.0,0.01091002]
[1768091533919,0.15833491,90650.0,90625.0,0.00551727]
[1768091533920,0.12681491,90640.0,90625.0,0.00551727]
[1768091534124,0.00502077,90639.0,90625.0,0.00551727]
[1768091534712,0.09388,90641.0,90625.0,0.00551727]
[1768091539227,0.09890301,90641.0,90625.0,0.00551727]
[1768091540823,0.10994901,90641.0,90625.0,0.00551727]
[1768091541326,0.09890301,90641.0,90625.0,0.00551727]
[1768091542038,0.00502405,90639.0,90625.0,0.00551727]
[1768091542425,0.00502405,90638.0,90625.0,0.00551727]
[1768091554731,0.02092,90637.0,90625.0,0.00551727]
[1768091559031,0.02588083,90637.0,90625.0,0.00551727]
[1768091563831,0.02092,90637.0,90625.0,0.00551727]
[1768091569042,0.1148,90637.0,90625.0,0.00551727]
[1768091588149,0.12018925,90637.0,90625.0,0.00551727]
[1768091589255,0.12018925,90637.0,90625.0,0.01656527]
[1768091591244,0.12018925,90637.0,90627.0,0.011048]
[1768091594956,0.12018925,90637.0,90625.0,0.01656527]
[1768091595151,0.12018925,90637.0,90625.0,0.00551727]
[1768091595457,0.12018925,90637.0,90626.0,0.011048]
[1768091597852,0.09926925,90637.0,90626.0,0.011048]
[1768091599157,0.09388,90637.0,90627.0,0.011048]
[1768091600359,0.02174,90636.0,90627.0,0.011048]
[1768091602361,0.02174,90636.0,90625.0,0.00551727]
[1768091603257,0.02174,90636.0,90627.0,0.011048]
[1768091604762,0.02174,90636.0,90625.0,0.01656527]
[1768091605164,0.02174,90636.0,90627.0,0.011048]
[1768091608164,0.02174,90636.0,90625.0,0.00551727]
[1768091608365,0.02174,90636.0,90625.0,0.01656527]
[1768091620076,0.02174,90636.0,90627.0,0.011048]
[1768091626281,0.02174,90636.0,90625.0,0.00551727]
[1768091627077,0.02174,90636.0,90627.0,0.011048]
[1768091631187,0.02174,90636.0,90625.0,0.01656527]
[1768091632175,0.02174,90636.0,90626.0,0.011048]
[1768091633276,0.02174,90636.0,90627.0,0.00967898]
[1768091633479,0.02174,90636.0,90629.0,0.011048]
[1768091633684,0.02174,90636.0,90631.0,0.011047]
[1768091637885,0.02174,90636.0,90633.0,0.011047]
[1768091642592,0.02174,90636.0,90631.0,0.011047]
[1768091643488,0.02174,90636.0,90626.0,0.00984014]
[1768091644287,0.02174,90636.0,90628.0,0.011048]
[1768091644488,0.02174,90636.0,90629.0,0.011048]
[1768091644890,0.02174,90636.0,90630.0,0.011048]
[1768091645082,0.02174,90636.0,90625.0,0.00551727]
[1768091646090,0.02174,90636.0,90628.0,0.011048]
[1768091647192,0.02174,90636.0,90629.0,0.011048]
[1768091648381,0.09388,90641.0,90629.0,0.011048]
[1768091652494,0.02851,90640.0,90629.0,0.011048]
[1768091654601,0.02851,90640.0,90625.0,0.00551727]
[1768091654808,0.02851,90640.0,90630.0,0.011048]
[1768091659209,0.02851,90640.0,90631.0,0.011047]
[1768091659710,0.02851,90640.0,90636.0,0.011047]
[1768091660809,0.02851,90640.0,90636.0,0.01100589]
[1768091662310,0.03771409,90640.0,90636.0,0.01100589]
[1768091663011,0.02851,90640.0,90636.0,0.01100589]
[1768091665209,0.02851,90640.0,90627.0,0.011048]
[1768091666315,0.02851,90640.0,90635.0,0.011047]
[1768091668114,0.02851,90640.0,90636.0,0.011047]
[1768091669719,0.02851,90640.0,90637.0,0.011047]
[1768091672721,0.09388,90641.0,90639.0,0.011047]
[1768091675224,0.09388,90641.0,90636.0,0.011047]
[1768091675824,0.09388,90641.0,90625.0,0.00551727]
[1768091675825,0.09388,90641.0,90637.0,0.011047]
[1768091679235,0.09388,90641.0,90634.0,0.011047]
[1768091688137,0.09388,90641.0,90626.0,0.011048]
[1768091688138,0.09388,90641.0,90635.0,0.011047]
[1768091698648,0.09388,90641.0,90636.0,0.011047]
[1768091698846,0.09388,90641.0,90634.0,0.011047]
[1768091703055,0.10089768,90641.0,90634.0,0.011047]
[1768091703253,0.10089768,90641.0,90625.0,0.00551727]
[1768091703550,0.00701768,90640.0,90625.0,0.00551727]
[1768091703957,0.00701768,90640.0,90633.0,0.011047]
[1768091706756,0.00701768,90640.0,90634.0,0.011047]
[1768091712670,0.09388,90641.0,90634.0,0.011047]
[1768091718678,0.09388,90641.0,90635.0,0.011047]
[1768091722162,0.09388,90641.0,90625.0,0.00551727]
[1768091722780,0.09388,90641.0,90632.0,0.011047]
[1768091723977,0.1010143,90641.0,90632.0,0.011047]
[1768091724174,0.1010143,90641.0,90625.0,0.00551727]